bitfinex/quotes_BTCUSD_20251104
["timestamp","ask_amount","ask_price","bid_price","bid_amount"]
[1762266111088,0.58738131,103890.0,103880.0,0.24338487]
[1762266111295,0.56343131,103890.0,103880.0,0.24338487]
[1762266111525,0.343,103890.0,103880.0,0.25957487]
[1762266111737,0.342,103890.0,103880.0,0.25957487]
[1762266112008,0.56290131,103890.0,103880.0,0.26057487]
[1762266112269,0.56090131,103890.0,103880.0,0.05185503]
[1762266112467,0.58485131,103890.0,103880.0,0.24438487]
[1762266112894,0.67942737,103890.0,103880.0,0.05085503]
[1762266113094,1.22217614,103890.0,103880.0,0.05085503]
[1762266114085,1.22217614,103890.0,103880.0,0.05285503]
[1762266114541,1.22217614,103890.0,103880.0,0.05485503]
[1762266115092,1.22025167,103890.0,103880.0,0.05485503]
[1762266115331,1.12567561,103890.0,103880.0,0.05485503]
[1762266116498,1.12567561,103890.0,103880.0,0.24738487]
[1762266116708,1.12567561,103890.0,103880.0,0.19741673]
[1762266116940,1.12567561,103890.0,103880.0,0.24738487]
[1762266117143,1.12567561,103890.0,103880.0,0.00488689]
[1762266117345,1.12567561,103890.0,103880.0,0.05485503]
[1762266118374,1.22025167,103890.0,103880.0,0.05485503]
[1762266119153,1.21833349,103890.0,103880.0,0.05485503]
[1762266119358,1.12347224,103890.0,103880.0,0.05485503]
[1762266120735,0.58072347,103890.0,103880.0,0.05485503]
[1762266120941,0.58072347,103890.0,103880.0,0.24738487]
[1762266120942,1.12347224,103890.0,103880.0,0.24738487]
[1762266122042,0.89057093,103890.0,103880.0,0.26357487]
[1762266122283,0.33587216,103890.0,103880.0,0.28643487]
[1762266122451,1.07524471,103900.0,103890.0,0.24247945]
[1762266122722,0.19251131,103890.0,103880.0,0.21360673]
[1762266122917,0.19251131,103890.0,103880.0,0.26357487]
[1762266123133,0.76365008,103890.0,103880.0,0.21360673]
[1762266123336,0.57113877,103890.0,103880.0,0.24538487]
[1762266123552,0.55469877,103890.0,103880.0,0.26157487]
[1762266123973,0.88274877,103900.0,103890.0,0.24247945]
[1762266124196,0.47307553,103910.0,103890.0,0.26464945]
[1762266124413,0.73595059,103910.0,103900.0,0.24246092]
[1762266124630,0.00072757,103910.0,103900.0,0.25865092]
[1762266125306,1.119061,103920.0,103910.0,0.19247425]
[1762266125496,0.7467331,103920.0,103910.0,0.25010239]
[1762266125701,0.57071737,103920.0,103910.0,0.25010239]
[1762266125835,0.55427737,103920.0,103910.0,0.30893239]
[1762266126048,0.0002897,103920.0,103910.0,0.33179239]
[1762266126718,0.0022897,103920.0,103910.0,0.33179239]
[1762266127111,0.0022897,103920.0,103910.0,0.42727146]
[1762266128112,0.0032897,103920.0,103910.0,0.42727146]
[1762266128313,0.00036579,103920.0,103910.0,0.42727146]
[1762266128512,0.19244016,103930.0,103920.0,0.19245573]
[1762266128885,0.19244016,103930.0,103910.0,0.37730332]
[1762266128886,0.77108893,103930.0,103910.0,0.24477425]
[1762266129100,0.77108893,103930.0,103920.0,0.04996814]
[1762266129312,0.78752893,103930.0,103920.0,0.04996814]
[1762266129517,0.78752893,103930.0,103920.0,0.24242387]
[1762266129518,0.57113877,103930.0,103920.0,0.24242387]
[1762266129725,0.73518598,103930.0,103920.0,0.25861387]
[1762266129938,0.73518598,103930.0,103920.0,0.25961387]
[1762266130374,0.24285348,103930.0,103920.0,0.05096814]
[1762266130580,0.78560225,103930.0,103920.0,0.001]
[1762266130779,0.88108132,103930.0,103920.0,0.05096814]
[1762266131395,0.78560225,103930.0,103920.0,0.05096814]
[1762266132912,1.76292708,103930.0,103920.0,0.003]
[1762266133328,1.76292708,103930.0,103920.0,0.001]
[1762266134165,1.12560225,103930.0,103920.0,0.001]
[1762266134373,0.53245573,103920.0,103910.0,0.04996814]
[1762266134588,1.1155945,103920.0,103910.0,0.04996814]
[1762266134793,1.65834327,103920.0,103910.0,0.04996814]
[1762266135208,0.19247425,103910.0,103900.0,0.05085483]
[1762266135417,0.96351423,103910.0,103900.0,0.00093529]
[1762266135630,1.30351423,103910.0,103900.0,0.05090343]
[1762266136045,1.20893817,103910.0,103900.0,0.05090343]
[1762266136675,1.20893817,103910.0,103900.0,0.00093529]
[1762266137295,1.20893817,103910.0,103900.0,0.19342807]
[1762266137508,0.92290877,103910.0,103900.0,0.24339621]
[1762266137718,1.09076302,103910.0,103900.0,0.24439621]
[1762266138152,0.75076302,103910.0,103900.0,0.24339621]
[1762266138361,0.55828877,103910.0,103900.0,0.25988621]
[1762266138570,0.75176302,103910.0,103900.0,0.25988621]
[1762266138983,0.75076302,103910.0,103900.0,0.25988621]
[1762266139405,0.54274877,103910.0,103900.0,0.26088621]
[1762266139825,0.73522302,103910.0,103900.0,0.26088621]
[1762266140041,0.75076302,103910.0,103900.0,0.24439621]
[1762266140242,0.77538302,103910.0,103900.0,0.24639621]
[1762266141480,0.77345892,103910.0,103900.0,0.24639621]
[1762266142423,0.77345892,103910.0,103900.0,0.05390343]
[1762266143112,0.75076302,103910.0,103900.0,0.24639621]
[1762266143724,0.86206226,103910.0,103900.0,0.05390343]
[1762266144167,0.77538302,103910.0,103900.0,0.05390343]
[1762266144382,0.77538302,103910.0,103900.0,0.24639621]
[1762266144603,0.75076302,103910.0,103900.0,0.24339621]
[1762266144807,0.55828877,103910.0,103900.0,0.24339621]
[1762266145029,0.55928877,103910.0,103900.0,0.24339621]
[1762266145270,0.74983892,103910.0,103900.0,0.24339621]
[1762266145512,0.74983892,103910.0,103900.0,0.05090343]
[1762266145847,0.77345892,103910.0,103900.0,0.05090343]
[1762266146255,0.77345892,103910.0,103900.0,0.24439621]
[1762266146465,0.77345892,103910.0,103900.0,0.24639621]
[1762266147024,0.77345892,103910.0,103900.0,0.05390343]
[1762266147230,0.77345892,103910.0,103900.0,0.24639621]
[1762266147590,0.77345892,103910.0,103900.0,0.05390343]
[1762266149178,0.0136159,103910.0,103900.0,0.24639621]
[1762266149415,1.01829704,103930.0,103920.0,0.19245573]
[1762266149605,1.01829704,103930.0,103920.0,0.25891387]
[1762266149606,0.55493983,103930.0,103920.0,0.25891387]
[1762266149760,0.00024106,103930.0,103920.0,0.28170387]
[1762266149960,0.00024106,103930.0,103920.0,0.23173573]
[1762266150246,0.19267827,103930.0,103920.0,0.28170387]
[1762266150860,0.19267827,103930.0,103920.0,0.28370387]
[1762266151029,0.76370704,103930.0,103920.0,0.01849]
[1762266151230,0.76370704,103930.0,103920.0,0.24442387]
[1762266151440,0.57126983,103930.0,103920.0,0.26185387]
[1762266151620,0.55498983,103930.0,103920.0,0.26185387]
[1762266151823,0.00024106,103930.0,103920.0,0.28448387]
[1762266152027,0.73542704,103930.0,103920.0,0.26185387]
[1762266152229,0.73542704,103930.0,103920.0,0.25985387]
[1762266152445,0.73542704,103930.0,103920.0,0.25785387]
[1762266152657,0.73542704,103930.0,103920.0,0.06639814]
[1762266152841,0.78843704,103930.0,103920.0,0.24642387]
[1762266153038,0.76370704,103930.0,103920.0,0.24642387]
[1762266153242,0.76370704,103930.0,103920.0,0.05096814]
[1762266153465,0.76178315,103930.0,103920.0,0.05096814]
[1762266153668,0.76178315,103930.0,103920.0,0.05196814]
[1762266153915,0.76178315,103930.0,103920.0,0.24442387]
[1762266154303,0.73350315,103930.0,103920.0,0.25985387]
[1762266154491,0.73350315,103930.0,103920.0,0.28248387]
[1762266154682,0.54106594,103930.0,103920.0,0.28248387]
[1762266155085,0.54106594,103930.0,103920.0,0.25985387]
[1762266155086,0.73350315,103930.0,103920.0,0.25985387]
[1762266155300,0.19243721,103930.0,103920.0,0.25985387]
[1762266156205,1.12109185,103940.0,103920.0,0.25985387]
[1762266156449,1.31236529,103940.0,103930.0,0.24240535]
[1762266156649,1.31236529,103940.0,103930.0,0.04996814]
[1762266156858,1.32864529,103940.0,103930.0,0.24240535]
[1762266157060,1.32888632,103940.0,103930.0,0.28504535]
[1762266157432,1.32696261,103940.0,103930.0,0.28504535]
[1762266157654,1.32696261,103940.0,103930.0,0.09260814]
[1762266158526,0.00124103,103940.0,103930.0,0.25752093]
[1762266158734,0.00124103,103940.0,103930.0,0.38372442]
[1762266159128,0.19465973,103940.0,103930.0,0.26561535]
[1762266159459,0.1924187,103940.0,103930.0,0.26561535]
[1762266159705,0.92644091,103940.0,103930.0,0.26561535]
[1762266160022,0.92644091,103940.0,103930.0,0.30825535]
[1762266160241,0.92644091,103940.0,103930.0,0.31025535]
[1762266160527,0.94079719,103940.0,103930.0,0.10538814]
[1762266160752,0.96552719,103940.0,103930.0,0.10538814]
[1762266160889,0.96552719,103940.0,103930.0,0.29782535]
[1762266161089,0.96552719,103940.0,103930.0,0.10538814]
[1762266161297,0.96552719,103940.0,103930.0,0.05496814]
[1762266161533,0.9636092,103940.0,103930.0,0.24740535]
[1762266161707,0.53240024,103950.0,103940.0,0.1924187]
[1762266161888,0.53240024,103950.0,103940.0,0.25781684]
[1762266162089,0.53264124,103950.0,103940.0,0.25781684]
[1762266162299,0.53264124,103950.0,103940.0,0.06539814]
[1762266162499,0.53264124,103950.0,103940.0,0.27705871]
[1762266162704,0.53264124,103950.0,103940.0,0.25781684]
[1762266162908,0.53364124,103950.0,103940.0,0.25781684]
[1762266163104,0.53264124,103950.0,103940.0,0.25781684]
[1762266163551,0.53264124,103950.0,103940.0,0.25981684]
[1762266163751,0.53264124,103950.0,103940.0,0.30245684]
[1762266164276,1.26666345,103950.0,103940.0,0.30245684]
[1762266164488,1.26666345,103950.0,103940.0,0.11003814]
[1762266164693,1.26666345,103950.0,103940.0,0.28702684]
[1762266164694,1.30574468,103950.0,103940.0,0.28702684]
[1762266164893,1.30375468,103950.0,103940.0,0.28702684]
[1762266165031,1.30375468,103950.0,103940.0,0.09460814]
[1762266165234,1.30375468,103950.0,103940.0,0.04864]
[1762266165434,1.30375468,103950.0,103940.0,0.2410587]
[1762266165634,1.30183118,103950.0,103940.0,0.2410587]
[1762266165878,1.30183118,103950.0,103940.0,0.04864]
[1762266167251,1.30187979,103950.0,103940.0,0.04864]
[1762266168692,1.29995632,103950.0,103940.0,0.04864]
[1762266170032,1.26671201,103950.0,103940.0,0.2143887]
[1762266170679,1.26613516,103950.0,103940.0,0.2143887]
[1762266170879,1.28117426,103950.0,103940.0,0.2143887]
[1762266171091,1.28117426,103950.0,103940.0,0.1984187]
[1762266172115,1.30391426,103950.0,103940.0,0.1984187]
[1762266172536,0.53077205,103950.0,103940.0,0.2373787]
[1762266172782,1.26479426,103950.0,103940.0,0.2143887]
[1762266172994,1.07046516,103950.0,103940.0,0.2143887]
[1762266174037,0.00028961,103950.0,103940.0,0.2373787]
[1762266174869,0.1926898,103950.0,103940.0,0.02197]
[1762266175102,0.96583201,103950.0,103940.0,0.006]
[1762266175575,0.96583201,103950.0,103940.0,0.0486]
[1762266176199,0.94309201,103950.0,103940.0,0.0486]
[1762266176372,0.1926898,103950.0,103940.0,0.06457]
[1762266176612,0.92671201,103950.0,103940.0,0.2569887]
[1762266176813,0.94309201,103950.0,103940.0,0.2569887]
[1762266177317,0.00028961,103950.0,103940.0,0.2569887]
[1762266177499,0.00028961,103950.0,103940.0,0.2799787]
[1762266177798,0.1926898,103950.0,103940.0,0.2569887]
[1762266178365,0.2090698,103950.0,103940.0,0.2569887]
[1762266178871,0.00028961,103950.0,103940.0,0.2569887]
[1762266179500,0.1926898,103950.0,103940.0,0.2569887]
[1762266180286,0.00028961,103950.0,103940.0,0.2569887]
[1762266180534,0.47723561,103950.0,103940.0,0.2569887]
[1762266181116,0.6696358,103950.0,103940.0,0.2569887]
[1762266181379,0.47723561,103950.0,103940.0,0.2569887]
[1762266181590,0.47723561,103950.0,103940.0,0.2799787]
[1762266182005,0.00028961,103950.0,103940.0,0.2799787]
[1762266182413,0.00028961,103950.0,103940.0,0.62976323]
[1762266182623,0.00028961,103950.0,103940.0,0.82976323]
[1762266182831,0.00028961,103950.0,103940.0,0.83976322]
[1762266183034,0.34,103990.0,103980.0,0.19234468]
[1762266183242,0.72055045,104000.0,103990.0,0.19232618]
[1762266183444,0.7206963,104000.0,103990.0,0.25007432]
[1762266183652,0.7370763,104000.0,103990.0,0.25007432]
[1762266183859,1.0770763,104000.0,103990.0,0.25007432]
[1762266184066,0.7370763,104000.0,103990.0,0.25007432]
[1762266184269,0.7370763,104000.0,103990.0,0.05774814]
[1762266184474,0.99325091,104000.0,103990.0,0.29267432]
[1762266184689,0.03042378,104000.0,103990.0,0.33163432]
[1762266184900,0.00154585,104000.0,103990.0,0.28166618]
[1762266185109,0.00154585,104000.0,103990.0,0.30566618]
[1762266185943,0.19285354,104000.0,103990.0,0.28166618]
[1762266186154,0.96509415,104000.0,103990.0,0.00778]
[1762266186362,0.96509415,104000.0,103990.0,0.003]
[1762266186568,1.30509415,104000.0,103990.0,0.003]
[1762266186792,1.30509415,104000.0,103990.0,0.002]
[1762266187214,1.30509415,104000.0,103990.0,0.01278]
[1762266187215,1.28235415,104000.0,103990.0,0.01278]
[1762266187635,1.30509415,104000.0,103990.0,0.002]
[1762266188305,0.19232618,103990.0,103980.0,0.19234458]
[1762266188910,0.19232618,103990.0,103980.0,0.20831458]
[1762266189115,0.19232618,103990.0,103980.0,0.23231458]
[1762266189317,0.19232618,103990.0,103980.0,0.20831458]
[1762266189523,0.22102618,103990.0,103970.0,0.27523113]
[1762266189730,0.22102618,103990.0,103980.0,0.002]
[1762266189930,0.20464618,103990.0,103980.0,0.21031468]
[1762266190558,0.01232,103990.0,103980.0,0.21031468]
[1762266190765,1.26597415,104000.0,103990.0,0.19232618]
[1762266190985,0.34054585,104000.0,103990.0,0.23906618]
[1762266191196,0.00054585,104000.0,103990.0,0.28166618]
[1762266191412,0.00054585,104000.0,103990.0,0.30566618]
[1762266191826,0.00054585,104000.0,103990.0,0.28166618]
[1762266192250,0.00054585,104000.0,103990.0,0.30566618]
[1762266192669,0.00054585,104000.0,103990.0,0.30666618]
[1762266192870,0.00054585,104000.0,103990.0,0.25967618]
[1762266193076,0.00054585,104000.0,103990.0,0.28367618]
[1762266193287,0.00054585,104000.0,103990.0,0.28266618]
[1762266193703,0.00054585,104000.0,103990.0,0.30666618]
[1762266194114,0.00054585,104000.0,103990.0,0.28266618]
[1762266194334,0.00054585,104000.0,103990.0,0.30666618]
[1762266194743,0.00054585,104000.0,103990.0,0.28266618]
[1762266195190,0.00054585,104000.0,103990.0,0.30766618]
[1762266195872,0.19285354,104000.0,103990.0,0.28366618]
[1762266196084,0.19285354,104000.0,103990.0,0.26067618]
[1762266196926,0.94168415,104000.0,103990.0,0.0446]
[1762266197144,0.96444415,104000.0,103990.0,0.0446]
[1762266199039,0.96444415,104000.0,103990.0,0.05238]
[1762266199253,0.94168415,104000.0,103990.0,0.20210618]
[1762266199457,0.94168415,104000.0,103990.0,0.24470618]
[1762266199683,0.94168415,104000.0,103990.0,0.05238]
[1762266199900,0.96564849,104000.0,103990.0,0.05238]
[1762266200107,0.96564849,104000.0,103990.0,0.0446]
[1762266200557,0.96564849,104000.0,103990.0,0.23692618]
[1762266200970,0.7733408,104000.0,103990.0,0.23692618]
[1762266201177,0.00175019,104000.0,103990.0,0.28406618]
[1762266201387,0.19405788,104000.0,103990.0,0.28406618]
[1762266201595,0.19405788,104000.0,103990.0,0.26049618]
[1762266202021,0.20976788,104000.0,103990.0,0.05238]
[1762266202237,0.23252788,104000.0,103990.0,0.05238]
[1762266202492,0.20976788,104000.0,103990.0,0.24470618]
[1762266202736,0.00175019,104000.0,103990.0,0.26049618]
[1762266202978,0.19405788,104000.0,103990.0,0.28449618]
[1762266203285,0.00175019,104000.0,103990.0,0.28449618]
[1762266203557,0.00175019,104000.0,103990.0,0.28406618]
[1762266204196,0.00175019,104000.0,103990.0,0.30806618]
[1762266205709,0.20976788,104000.0,103990.0,0.20210618]
[1762266205957,0.20976788,104000.0,103990.0,0.24470618]
[1762266206177,0.19405788,104000.0,103990.0,0.26049618]
[1762266207254,0.19405788,104000.0,103990.0,0.21789618]
[1762266207469,0.19405788,104000.0,103990.0,0.26049618]
[1762266207873,0.19405788,104000.0,103990.0,0.06817]
[1762266208278,0.19405788,104000.0,103990.0,0.26049618]
[1762266208649,0.00175019,104000.0,103990.0,0.28449618]
[1762266209002,0.19405788,104000.0,103990.0,0.28449618]
[1762266209772,0.00175019,104000.0,103990.0,0.26049618]
[1762266209987,0.00175019,104000.0,103990.0,0.28406618]
[1762266210918,0.00175019,104000.0,103990.0,0.28410618]
[1762266211147,0.00175019,104000.0,103990.0,0.30810618]
[1762266212874,0.00175019,104000.0,103990.0,0.28410618]
[1762266213092,0.00175019,104000.0,103990.0,0.30810618]
[1762266213303,0.00175019,104000.0,103990.0,0.28410618]
[1762266213718,0.00175019,104000.0,103990.0,0.30810618]
[1762266214121,0.00175019,104000.0,103990.0,0.28410618]
[1762266214539,0.00175019,104000.0,103990.0,0.30810618]
[1762266215156,0.96579849,104000.0,103990.0,0.00204]
[1762266215560,1.38393564,104000.0,103990.0,0.00204]
[1762266215687,1.30579849,104000.0,103990.0,0.05200814]
[1762266216089,1.33467592,104000.0,103990.0,0.05200814]
[1762266216297,1.33467592,104000.0,103990.0,0.00204]
[1762266216502,1.73270229,104000.0,103990.0,0.00104]
[1762266216706,0.54196191,103980.0,103950.0,0.0077]
[1762266216935,0.75976357,103960.0,103950.0,0.06262814]
[1762266217540,0.75976357,103960.0,103950.0,0.05766814]
[1762266217881,0.54179189,103960.0,103950.0,0.21577019]
[1762266218075,0.54179189,103960.0,103950.0,0.28882833]
[1762266218300,0.20472976,103970.0,103960.0,0.19238168]
[1762266218301,1.08652165,103970.0,103960.0,0.19238168]
[1762266218505,0.89414189,103970.0,103960.0,0.24234982]
[1762266218709,1.08650507,103970.0,103960.0,0.24234982]
[1762266218917,1.10231507,103970.0,103960.0,0.24234982]
[1762266219130,0.93276189,103970.0,103960.0,0.24234982]
[1762266219336,0.90995189,103970.0,103960.0,0.24234982]
[1762266219763,1.10231507,103970.0,103960.0,0.24334982]
[1762266219964,0.34,103970.0,103960.0,0.25901982]
[1762266220171,0.53236318,103970.0,103960.0,0.25901982]
[1762266220818,0.34,103970.0,103960.0,0.25901982]
[1762266221024,0.34,103970.0,103960.0,0.32470982]
[1762266222115,0.34,103970.0,103960.0,0.30161982]
[1762266222321,0.34,103970.0,103960.0,0.32470982]
[1762266222530,0.91067421,103980.0,103970.0,0.19236318]
[1762266222763,1.07413657,103980.0,103970.0,0.24233132]
[1762266222965,1.07485931,103980.0,103970.0,0.24233132]
[1762266223386,1.11347931,103980.0,103960.0,0.25907168]
[1762266223594,1.11275657,103980.0,103970.0,0.04996814]
[1762266223811,1.11275657,103980.0,103970.0,0.24233132]
[1762266224032,0.19236318,103970.0,103960.0,0.28594982]
[1762266224232,1.11475657,103980.0,103960.0,0.23598168]
[1762266224433,1.09194657,103980.0,103970.0,0.24233132]
[1762266224651,0.89960189,103980.0,103970.0,0.24233132]
[1762266224857,0.90060189,103980.0,103970.0,0.24233132]
[1762266225069,0.89860189,103980.0,103970.0,0.24233132]
[1762266225284,0.89760189,103980.0,103970.0,0.24233132]
[1762266225494,1.08994657,103980.0,103970.0,0.04996814]
[1762266225698,1.08994657,103980.0,103970.0,0.24233132]
[1762266226168,1.11463657,103980.0,103970.0,0.04996814]
[1762266226382,1.11563657,103980.0,103970.0,0.04996814]
[1762266226591,1.11563657,103980.0,103970.0,0.24233132]
[1762266227106,0.88279189,103980.0,103970.0,0.25880132]
[1762266227353,0.88279189,103980.0,103970.0,0.28184132]
[1762266227354,0.001,103980.0,103970.0,0.28184132]
[1762266227563,0.003,103980.0,103970.0,0.28184132]
[1762266228158,0.002,103980.0,103970.0,0.28184132]
[1762266228409,0.19236318,103970.0,103960.0,0.19238168]
[1762266228731,0.75982657,103980.0,103960.0,0.30141982]
[1762266228948,0.75882657,103980.0,103970.0,0.24233132]
[1762266229153,0.75882657,103980.0,103970.0,0.04996814]
[1762266229354,0.77507657,103980.0,103970.0,0.05196814]
[1762266229763,0.77507657,103980.0,103970.0,0.24233132]
[1762266230085,0.77579931,103980.0,103970.0,0.04996814]
[1762266230308,0.77579931,103980.0,103970.0,0.24233132]
[1762266232174,0.77579931,103980.0,103970.0,0.24333132]
[1762266232374,0.58345463,103980.0,103970.0,0.24333132]
[1762266232582,0.00072274,103980.0,103970.0,0.28284132]
[1762266234338,0.00072274,103980.0,103970.0,0.24333132]
[1762266234339,0.20931742,103980.0,103970.0,0.24333132]
[1762266234695,0.20931742,103980.0,103970.0,0.25980132]
[1762266234903,0.19306742,103980.0,103970.0,0.25980132]
[1762266235906,0.20931742,103980.0,103970.0,0.24333132]
[1762266236092,0.77579931,103980.0,103970.0,0.05096814]
[1762266236816,0.87037537,103980.0,103970.0,0.001]
[1762266237011,0.87037537,103980.0,103970.0,0.05096814]
[1762266237628,1.11579931,103980.0,103970.0,0.05096814]
[1762266237836,1.11579931,103980.0,103970.0,0.24333132]
[1762266238040,1.14468224,103980.0,103970.0,0.24333132]
[1762266238243,1.14468224,103980.0,103970.0,0.05096814]
[1762266238444,1.14668224,103980.0,103970.0,0.05096814]
[1762266238620,1.14668224,103980.0,103970.0,0.04996814]
[1762266238828,1.14768224,103980.0,103970.0,0.04996814]
[1762266239028,0.19236318,103970.0,103960.0,0.284949]
[1762266239402,1.1297095,103980.0,103960.0,0.301419]
[1762266239598,1.1297095,103980.0,103970.0,0.24333132]
[1762266239804,1.1277095,103980.0,103970.0,0.05096814]
[1762266240007,1.1439595,103980.0,103970.0,0.04996814]
[1762266240437,0.19236318,103970.0,103960.0,0.0446]
[1762266240635,0.76183507,103970.0,103960.0,0.09456814]
[1762266241112,1.12652507,103970.0,103960.0,0.05196814]
[1762266241668,1.12652507,103970.0,103960.0,0.05496814]
[1762266241880,1.12652507,103970.0,103960.0,0.003]
[1762266242551,1.12652507,103970.0,103960.0,0.05296814]
[1762266243007,1.12752507,103970.0,103960.0,0.05296814]
[1762266243569,1.12752507,103970.0,103960.0,0.04996814]
[1762266243773,0.19238168,103960.0,103950.0,0.05000814]
[1762266243929,0.77511357,103960.0,103950.0,0.05000814]
[1762266244351,0.77511357,103960.0,103950.0,0.24240833]
[1762266244558,0.20863168,103960.0,103950.0,0.24240833]
[1762266244805,0.77511357,103960.0,103950.0,0.24240833]
[1762266245015,0.77511357,103960.0,103950.0,0.05000814]
[1762266245745,0.77511357,103960.0,103950.0,0.05100814]
[1762266246756,0.77319632,103960.0,103950.0,0.05100814]
[1762266249067,0.77127907,103960.0,103950.0,0.05100814]
[1762266249679,0.77152003,103960.0,103950.0,0.05100814]
[1762266250191,1.11152003,103960.0,103950.0,0.00104]
[1762266250392,1.11152003,103960.0,103950.0,0.05100814]
[1762266250590,1.11152003,103960.0,103950.0,0.00104]
[1762266250591,1.65331192,103960.0,103950.0,0.00104]
[1762266251453,1.65531192,103960.0,103950.0,0.00104]
[1762266251747,1.70286674,103960.0,103950.0,4e-05]
[1762266252064,1.73176094,103960.0,103950.0,4e-05]
[1762266252291,1.827337,103960.0,103950.0,4e-05]
[1762266252665,1.826337,103960.0,103950.0,4e-05]
[1762266253263,1.830337,103960.0,103950.0,4e-05]
[1762266253460,1.83032618,103960.0,103950.0,4e-05]
[1762266254962,1.85432618,103960.0,103950.0,4e-05]
[1762266255168,0.19243721,103930.0,103920.0,0.04996814]
[1762266255445,1.0742291,103930.0,103920.0,0.05001675]
[1762266255656,1.1261291,103930.0,103920.0,0.05001675]
[1762266256743,1.1261291,103930.0,103920.0,0.05201675]
[1762266257756,1.1261291,103930.0,103920.0,0.05401675]
[1762266258921,1.1261291,103930.0,103920.0,0.00404861]
[1762266259125,1.22070516,103930.0,103920.0,0.00404861]
[1762266259899,1.22070516,103930.0,103920.0,0.00204861]
[1762266260106,1.22070516,103930.0,103920.0,4.861e-05]
[1762266260242,1.22470516,103930.0,103920.0,4.861e-05]
[1762266260468,1.22670516,103930.0,103920.0,4.861e-05]
[1762266260671,1.23633123,103930.0,103920.0,4.861e-05]
[1762266261897,1.26523194,103930.0,103920.0,4.861e-05]
[1762266263366,1.28309932,103930.0,103920.0,4.861e-05]
[1762266264042,1.84547389,103930.0,103920.0,4.861e-05]
[1762266264624,2.09177389,103930.0,103920.0,4.861e-05]
[1762266265365,2.10070764,103930.0,103920.0,4.861e-05]
[1762266267522,2.15070764,103930.0,103920.0,4.861e-05]
[1762266268282,2.10070764,103930.0,103920.0,4.861e-05]
[1762266268489,2.15070764,103930.0,103920.0,4.861e-05]
[1762266268684,1.06712386,103930.0,103920.0,4.861e-05]
[1762266269136,2.15070764,103930.0,103920.0,4.861e-05]
[1762266269340,2.10070764,103930.0,103920.0,4.861e-05]
[1762266269914,1.85440764,103930.0,103920.0,4.861e-05]
[1762266271986,0.19247425,103910.0,103900.0,4e-05]
[1762266272207,0.94871725,103910.0,103900.0,8.86e-05]
[1762266272427,0.97209725,103910.0,103900.0,8.86e-05]
[1762266272655,1.31209725,103910.0,103900.0,8.86e-05]
[1762266272874,1.36156867,103910.0,103900.0,8.86e-05]
[1762266273094,1.37049295,103910.0,103900.0,8.86e-05]
[1762266273749,1.37149295,103910.0,103900.0,8.86e-05]
[1762266274235,1.37049295,103910.0,103900.0,8.86e-05]
[1762266274431,1.37249295,103910.0,103900.0,8.86e-05]
[1762266275062,1.37549295,103910.0,103900.0,8.86e-05]
[1762266275470,1.30299829,103910.0,103900.0,8.86e-05]
[1762266275681,1.24460259,103910.0,103900.0,8.86e-05]
[1762266276385,1.24160259,103910.0,103900.0,8.86e-05]
[1762266276863,1.23960259,103910.0,103900.0,8.86e-05]
[1762266278262,1.14412352,103910.0,103900.0,8.86e-05]
[1762266278461,0.26233163,103910.0,103900.0,0.24254952]
[1762266278666,0.24446425,103910.0,103900.0,0.24254952]
[1762266278870,0.02861,103910.0,103900.0,0.24254952]
[1762266279288,0.56108425,103910.0,103900.0,0.24254952]
[1762266279480,0.56108425,103910.0,103900.0,0.24354952]
[1762266279991,0.56108425,103910.0,103900.0,0.05205674]
[1762266280200,0.58446425,103910.0,103900.0,0.05205674]
[1762266280398,0.69693206,103910.0,103900.0,0.0020886]
[1762266280633,0.69693206,103910.0,103900.0,0.24454952]
[1762266280830,0.69693206,103910.0,103900.0,0.05205674]
[1762266281161,1.43131132,103910.0,103900.0,0.24454952]
[1762266282123,0.602356,103910.0,103900.0,0.24454952]
[1762266282297,0.40988175,103910.0,103900.0,0.24454952]
[1762266282658,0.602356,103910.0,103900.0,0.24454952]
[1762266283264,0.602356,103910.0,103900.0,0.05205674]
[1762266283799,0.602356,103910.0,103900.0,0.24454952]
[1762266284618,0.602356,103910.0,103900.0,0.05205674]
[1762266286296,1.43131132,103910.0,103900.0,0.05205674]
[1762266286895,0.69693206,103910.0,103900.0,0.05205674]
[1762266287141,1.45195664,103910.0,103900.0,0.05205674]
[1762266288266,1.23883707,103910.0,103900.0,0.24454952]
[1762266288475,0.01789175,103910.0,103900.0,0.28387952]
[1762266288681,0.95066166,103920.0,103910.0,0.24244239]
[1762266288682,0.19245731,103920.0,103910.0,0.24244239]
[1762266288934,0.2463,103930.0,103920.0,0.19245573]
[1762266289152,0.46791921,103930.0,103910.0,0.28218425]
[1762266289360,0.46791921,103930.0,103920.0,0.04996814]
[1762266289540,0.46791921,103930.0,103920.0,0.06511814]
[1762266289777,0.46791921,103930.0,103920.0,0.25757387]
[1762266289971,0.80791921,103930.0,103920.0,0.25757387]
[1762266290119,0.82605921,103930.0,103920.0,0.06511814]
[1762266290300,0.19245573,103920.0,103910.0,0.05038]
[1762266290490,0.20859573,103920.0,103910.0,0.10034814]
[1762266290972,1.61935526,103930.0,103910.0,0.30797239]
[1762266291168,1.6040458,103930.0,103920.0,0.24342387]
[1762266291400,0.85175168,103930.0,103920.0,0.24242387]
[1762266291632,0.19247425,103910.0,103900.0,8.86e-05]
[1762266291841,0.99274814,103910.0,103900.0,0.05005674]
[1762266292021,1.01655814,103910.0,103900.0,0.05005674]
[1762266292677,0.20373425,103910.0,103900.0,0.06520674]
[1762266292868,0.24368425,103910.0,103900.0,0.05005674]
[1762266293911,1.07354258,103910.0,103900.0,0.05005674]
[1762266294562,1.07354258,103910.0,103900.0,0.05105674]
[1762266294994,1.50811864,103910.0,103900.0,0.05205674]
[1762266297179,0.53247425,103910.0,103900.0,0.11063601]
[1762266297401,0.19247425,103910.0,103900.0,0.08645601]
[1762266297617,0.97806351,103910.0,103900.0,0.05205674]
[1762266297839,0.97806351,103910.0,103900.0,0.0020886]
[1762266298051,0.97806351,103910.0,103900.0,0.05205674]
[1762266298322,1.07263957,103910.0,103900.0,0.05205674]
[1762266298557,0.97806351,103910.0,103900.0,0.05205674]
[1762266300361,1.31806351,103910.0,103900.0,0.0020886]
[1762266300817,1.39445573,103910.0,103900.0,0.0020886]
[1762266301265,1.39445573,103910.0,103900.0,8.86e-05]
[1762266301492,1.49003179,103910.0,103900.0,8.86e-05]
[1762266301793,1.4900285,103910.0,103900.0,8.86e-05]
[1762266302021,1.4890285,103910.0,103900.0,8.86e-05]
[1762266302250,1.4910285,103910.0,103900.0,8.86e-05]
[1762266302475,1.4940285,103910.0,103900.0,8.86e-05]
[1762266305377,1.5180285,103910.0,103900.0,8.86e-05]
[1762266305593,1.4940285,103910.0,103900.0,8.86e-05]
[1762266306219,1.49402343,103910.0,103900.0,8.86e-05]
[1762266306369,1.51802343,103910.0,103900.0,8.86e-05]
[1762266306789,0.53252984,103880.0,103870.0,0.04996814]
[1762266306990,1.36681489,103880.0,103870.0,0.00048642]
[1762266307192,1.40025138,103880.0,103870.0,0.00048642]
[1762266307594,2.13463064,103880.0,103870.0,0.00048642]
[1762266307799,2.13463064,103880.0,103850.0,0.00281678]
[1762266307800,1.26694617,103860.0,103850.0,0.00281678]